Workbook

Sheet Basis
B2: Prices (NPC-Historical 5 years+3 years forecast)
B3: Item | C3: Stream | D3: $/T | E3: Remarks
B4: 1 | C4: Light Crude Oil | D4: 589
B5: 2 | C5: Heavy Crude Oil | D5: 559
B6: 3 | C6: Gas Condensate | D6: 649
B7: 4 | C7: Propane (C3) | D7: 560
B8: 5 | C8: Mix Butane (C4) | D8: 565
B9: 6 | C9: Gasoline (Octane: 95) | D9: 810
B10: 7 | C10: Gasline (Octane: 92) | D10: 790
B11: 8 | C11: Kerosene | D11: 754
B12: 9 | C12: Jet Fuel | D12: 790
B13: 10 | C13: Gasoil | D13: 724
B14: 11 | C14: Sulfur (Granule) | D14: 125
B15: 12 | C15: Fuel Oil (0.5% Sulfur) | D15: 635
B16: 13 | C16: Fuel Oil (3.5% Sulfur) | D16: 465
B17: 14 | C17: Ethylene | D17: 800
B18: 15 | C18: Propylene (Polymeric) | D18: 810
B19: 16 | C19: Polypropylene (copolymer) | D19: 1003 | G19: Main Assumptions
B20: 17 | C20: Polypropylene (homopolymer) | D20: 974 | G20: Plant Capacity | H20: BPSD | I20: Percent | J20: TPD | K20: KTPY
B21: 18 | C21: Olefinic Fuel oil | D21: 416 | H21: 60000 | I21: =I22+I23 -> 1
B22: 19 | C22: Olefinic Pyrolysis Gasoline | D22: 716 | G22: =C6 -> Gas Condensate | H22: =I22*H21 -> 60000 | I22: 1 | J22: =296814*24/1000 -> 7123.536 | K22: =J22*330/1000 -> 2350.76688
B23: 20 | C23: polystyrene, EPS | D23: 1344 | G23: =C5 -> Heavy Crude Oil
B24: 21 | C24: polystyrene, HIPS | D24: 1527 | G24: Total | H24: =SUM(H22:H23) -> 60000 | I24: =SUM(I22:I23) -> 1
B25: 22 | C25: polystyrene, GPPS | D25: 1276
B26: 23 | C26: SBR (non oil Garde 1502) | D26: 1699 | G26: Utilization rate | H26: yr1 | I26: yr2 | J26: yr3
B27: 24 | C27: SBR (Oil Extended Garde 1712) | D27: 1458 | H27: 0.8 | I27: 0.9 | J27: 1
B28: 25 | C28: PBR | D28: 1735
B29: 26 | C29: LLDPE (Butene Garde) | D29: 1016 | G29: Interest on feed grace | H29: % | I29: year
B30: 27 | C30: LDPE | D30: 1135 | G30: repeyment period | H30: 0.08 | I30: 8
B31: 28 | C31: HDPE (film) | D31: 1076
B32: 29 | C32: HDPE (body) | D32: 1044 | G32: On Stream | H32: days
B33: 30 | C33: HDPE (Injected) | D33: 1021 | H33: 330
B34: 31 | C34: Benzene | D34: 901
B35: 32 | C35: Styrene monomer | D35: 1087 | G35: Tax Rate | H35: 0.25
B36: 33 | C36: ParaXylene | D36: 1002 | G36: Salvage | H36: 0.25
B37: 34 | C37: Orthoxylene | D37: 1027 | G37: Discount Rate | H37: 0.1
B38: 35 | C38: Mix- Xylense | D38: 947 | G38: Discount of feed fob price | H38: 0.05
B39: 36 | C39: Heavy Aromatics (C9+) | D39: 769
B40: 37 | C40: C4 Raffinate I | D40: 626 | G40: working capital (number of month) | H40: 1
B41: 38 | C41: 1,3-Butadiene | D41: 1031
B42: 39 | C42: Ethylbenzene | D42: 935 | G42: Interest on Loan for Capex | H42: % | I42: year
B43: 40 | C43: Isobutylene | D43: 1236 | G43: repeyment period | H43: 0.08 | I43: 5
B44: 41 | C44: Light Naphtha | D44: 645 | G44: Loan Ratio of Capex | H44: 0.85
B45: 42 | C45: Heavy Naphtha | D45: 668
B46: 43 | C46: MTBE | D46: 865 | G46: Construction Phase
B47: 44 | C47: Alkylate | D47: 868 | G47: 1 | H47: 2 | I47: 3 | J47: 4
B48: 45 | C48: EPDM | D48: 2521 | G48: 0.07 | H48: 0.13 | I48: 0.35 | J48: 0.3
B49: 46 | C49: LAB | D49: 1451
B50: 46 | C50: Pitch | G50: feed grace interest include | H50: 1
G51: capex loan interest include | H51: 1
G52: Note: Include:1, Exclude:0

Sheet CAPEX
H3: هزینه های انجام شده | M3: پیش بینی | P3: جمع کل
H4: 1398 | I4: 1399 | J4: 1400 | K4: 1401 | L4: 1402 | M4: 1403 | N4: 1404 | O4: 1405
B5: EPC Breakdown | H5: =H11/$P$11 -> 0.08770799537 | I5: =I11/$P$11 -> 0.06817474256 | J5: =J11/$P$11 -> 0.2983554234 | K5: =K11/$P$11 -> 0.1654678814 | L5: =L11/$P$11 -> 0.1278859689 | M5: =M11/$P$11 -> 0.08066371233 | N5: =N11/$P$11 -> 0.112282363 | O5: =O11/$P$11 -> 0.0594619131
B6: Equity Share % | H6: =H10/H11 -> 0.3359342242 | I6: =I10/I11 -> 0.5578762143 | J6: 0.1957827492 | K6: 0.4919297393 | L6: 0.678169296 | M6: 0.5963868499 | N6: 0.4456725198 | O6: 0.8577506347
C7: 1393/8/12/29 | D7: 1394/8/12/29 | E7: 1395/8/12/29 | F7: 1396/12/29 | G7: 1397/12/29 | H7: 1398/12/29 | I7: 1399/12/29 | J7: 1400/12/29 | K7: 1401/12/29 | L7: 1402/12/29 | M7: 1403/12/29 | N7: 1404/12/29 | O7: 1405/12/29
B8: تسهیلات ارزی(میلیون دلار) | C8: 0 | D8: 0 | E8: 0 | F8: 0 | G8: 0 | H8: =29196240/10^6 -> 29.19624 | I8: =15109289/10^6 -> 15.109289 | J8: =120277381/10^6 -> 120.277381 | K8: =42141901/10^6 -> 42.141901 | L8: =20631320/10^6 -> 20.63132 | M8: =16000000*1.02/10^6 -> 16.32 | N8: =30000000*1.04/10^6 -> 31.2 | O8: =4000000*1.06/10^6 -> 4.24 | P8: =SUM(H8:O8) -> 279.116131
B9: تزریق ریالی(میلیون ریال) equity | C9: 0 | D9: 0 | E9: 0 | F9: 0 | G9: 0 | H9: 1889274 | I9: 4219096 | J9: 7318800 | K9: 11505706 | L9: 18024655 | M9: 12000000 | N9: 10000000 | O9: 10000000 | P9: =SUM(M9:O9) -> 32000000
B10: equity (میلیون دلار) | H10: =H9/127916 -> 14.7696457 | I10: =I9/221300 -> 19.06505197 | J10: =J9/249951 -> 29.28093906 | K10: =K9/281981 -> 40.80312503 | L10: =L9/414600 -> 43.47480704 | M10: =M9/507573*1.02 -> 24.11475788 | N10: =N9/414600*1.04 -> 25.08441872 | O10: =O9/414600*1.06 -> 25.56681138 | P10: =SUM(H10:O10) -> 222.1595568
B11: TOTAL INVESTMEN | H11: =H8+H10 -> 43.9658857 | I11: =I8+I10 -> 34.17434097 | J11: 149.5583201 | K11: 82.94502603 | L11: 64.10612704 | M11: =M8+M10 -> 40.43475788 | N11: =N8+N10 -> 56.28441872 | O11: =O8+O10 -> 29.80681138 | P11: =P8+P10 -> 501.2756878 | Q11: :Plant total CAPEX
P12: =N11/2+O11 -> 57.94902074 | Q12: :Plant NHT CAPEX
P13: یادداشت 1 : نرخ تسهیلات 6 درصد بوده و شرایط پرداخت تسهیلات 27 قسط طی 7 سال ، سال اول 3 قسط و 6 سال بعدی هر سال 4 قسط، شرو ع اقساط از تاریخ شهریور 1405 می باشد.
P14: یادداشت 2 : شروع راه اندازی فاز اول ( بدون NHT)، انتهای برج 6 سال 1404 و شروع راه اندازی کل پالایشگاه انتهای سال 1405
P15: یادداشت 3 : مبالغ تزریق ریالی می توانند با نرخ سنا در انتهای سال به ارز تبدیل شوند. مبالغ ریالی پیش بینی شده از زاویه زمان کنونی دیده شده است و نرخ تورم سالهای آتی اعمال نشده است
N18: =N11/2 -> 28.14220936
N20: =N11/2+O11 -> 57.94902074
B22: Input
J23: 1 | K23: 2 | L23: 3 | M23: 5 | N23: part 1 of loan | O23: part 2 of loan | P23: part 3 of loan | Q23: part 4 of loan | R23: part 5 of loan | S23: grace period interest | T23: Total Grace Period interest
B24: FIXED INVESTMENT COST (EPC Cost) | E24: MM $ | G24: Total Investment for feed garce | J24: Construction Phase (loan Distribution) | S24: Include : 1
B25: Scenario | C25: CAPEX | D25: Loan | E25: Loan Finacial Cost | F25: working Capital | I25: Scenario | J25: =Basis!G48 -> 0.07 | K25: =Basis!H48 -> 0.13 | L25: =Basis!I48 -> 0.35 | M25: =Basis!#REF! ->  | N25: Grace Period interest | O25: Grace Period interest | P25: Grace Period interest | Q25: Grace Period interest | R25: Grace Period interest | S25: Exclude:0
B26: 1 | C26: 5843 | D26: =C26*Basis!$H$44 -> 4966.55 | E26: =H47*0.83 ->  | G26: =C26+E26+F26 ->  | I26: 1 | J26: =$D$26*J25 -> 347.6585 | K26: =$D$26*K25 -> 645.6515 | L26: 1738.2925 | N26: =J26*$B$51/2 -> 13.90634 | O26: =(N26+J26)*$B$51+K26*$B$51/2 -> 54.7512472 | P26: =(J26+K26+N26+O26)*$B$51+L26*$B$51/2 -> 154.489107 | Q26: =(SUM(J26:L26)+SUM(N26:P26))*$B$51+#REF!*$B$51/2 ->  | R26: =(SUM(J26:L26)+SUM(N26:Q26))*$B$51+M26*$B$51/2 ->  | S26: =Basis!H51 -> 1 | T26: =SUM(N26:R26)*S26 -> 
B27: 2 | D27: =C27*Basis!$H$44 -> 0 | E27: =H56*0.83 ->  | I27: 2 | J27: =$D$27*J25 -> 0 | K27: =$D$27*K25 -> 0 | L27: 0 | N27: =J27*$B$51/2 -> 0 | O27: =(N27+J27)*$B$51+K27*$B$51/2 -> 0 | P27: =(J27+K27+N27+O27)*$B$51+L27*$B$51/2 -> 0 | Q27: =(SUM(J27:L27)+SUM(N27:P27))*$B$51+#REF!*$B$51/2 ->  | R27: =(SUM(J27:L27)+SUM(N27:Q27))*$B$51+M27*$B$51/2 ->  | S27: =S26 -> 1 | T27: =SUM(N27:R27)*S27 -> 
B28: 3 | D28: =C28*Basis!$H$44 -> 0 | E28: =H65*0.83 ->  | I28: 3 | J28: =$D$28*J25 -> 0 | K28: =$D$28*K25 -> 0 | L28: 0 | N28: =J28*$B$51/2 -> 0 | O28: =(N28+J28)*$B$51+K28*$B$51/2 -> 0 | P28: =(J28+K28+N28+O28)*$B$51+L28*$B$51/2 -> 0 | Q28: =(SUM(J28:L28)+SUM(N28:P28))*$B$51+#REF!*$B$51/2 ->  | R28: =(SUM(J28:L28)+SUM(N28:Q28))*$B$51+M28*$B$51/2 ->  | S28: =S26 -> 1
B29: 4 | D29: =C29*Basis!$H$44 -> 0 | E29: =H74*0.83 ->  | I29: 4 | J29: =$D$29*J25 -> 0 | K29: =$D$29*K25 -> 0 | L29: 0 | N29: =J29*$B$51/2 -> 0 | O29: =(N29+J29)*$B$51+K29*$B$51/2 -> 0 | P29: =(J29+K29+N29+O29)*$B$51+L29*$B$51/2 -> 0 | Q29: =(SUM(J29:L29)+SUM(N29:P29))*$B$51+#REF!*$B$51/2 ->  | R29: =(SUM(J29:L29)+SUM(N29:Q29))*$B$51+M29*$B$51/2 ->  | S29: =S26 -> 1
B30: 5 | D30: =C30*Basis!$H$44 -> 0 | E30: =H83*0.83 ->  | I30: 5 | J30: =$D$30*J25 -> 0 | K30: =$D$30*K25 -> 0 | L30: 0 | N30: =J30*$B$51/2 -> 0 | O30: =(N30+J30)*$B$51+K30*$B$51/2 -> 0 | P30: =(J30+K30+N30+O30)*$B$51+L30*$B$51/2 -> 0 | Q30: =(SUM(J30:L30)+SUM(N30:P30))*$B$51+#REF!*$B$51/2 ->  | R30: =(SUM(J30:L30)+SUM(N30:Q30))*$B$51+M30*$B$51/2 ->  | S30: =S26 -> 1
B31: 6 | D31: =C31*Basis!$H$44 -> 0 | E31: =H92*0.83 ->  | I31: 6 | J31: =$D$31*J25 -> 0 | K31: =$D$31*K25 -> 0 | L31: 0 | N31: =J31*$B$51/2 -> 0 | O31: =(N31+J31)*$B$51+K31*$B$51/2 -> 0 | P31: =(J31+K31+N31+O31)*$B$51+L31*$B$51/2 -> 0 | Q31: =(SUM(J31:L31)+SUM(N31:P31))*$B$51+#REF!*$B$51/2 ->  | R31: =(SUM(J31:L31)+SUM(N31:Q31))*$B$51+M31*$B$51/2 ->  | S31: =S26 -> 1
B32: 7 | D32: =C32*Basis!$H$44 -> 0 | E32: =H102*0.83 ->  | I32: 7 | J32: =$D$32*J25 -> 0 | K32: =$D$32*K25 -> 0 | L32: 0 | N32: =J32*$B$51/2 -> 0 | O32: =(N32+J32)*$B$51+K32*$B$51/2 -> 0 | P32: =(J32+K32+N32+O32)*$B$51+L32*$B$51/2 -> 0 | Q32: =(SUM(J32:L32)+SUM(N32:P32))*$B$51+#REF!*$B$51/2 ->  | R32: =(SUM(J32:L32)+SUM(N32:Q32))*$B$51+M32*$B$51/2 ->  | S32: =S26 -> 1
B33: 9 | D33: =C33*Basis!$H$44 -> 0 | E33: =H111*0.83 ->  | I33: 9 | J33: =$D$33*J25 -> 0 | K33: =$D$33*K25 -> 0 | L33: 0 | N33: =J33*$B$51/2 -> 0 | O33: =(N33+J33)*$B$51+K33*$B$51/2 -> 0 | P33: =(J33+K33+N33+O33)*$B$51+L33*$B$51/2 -> 0 | Q33: =(SUM(J33:L33)+SUM(N33:P33))*$B$51+#REF!*$B$51/2 ->  | R33: =(SUM(J33:L33)+SUM(N33:Q33))*$B$51+M33*$B$51/2 ->  | S33: =S26 -> 1
A43: Finacial Cost of Capex Loan
A45: Scanario 1 | C45: 1 | D45: 2 | E45: 3 | F45: 4 | G45: 5 | H45: Total
A46: Pay Back (Orginal) | C46: =$D$26/$B$50 -> 993.31 | D46: =$D$26/5 -> 993.31 | E46: 993.31 | F46: 993.31 | G46: 993.31 | H46: =SUM(C46:G46) -> 4966.55
A47: Financial cost | C47: =C48-C46 ->  | D47: =D48-D46 ->  | H47: =SUM(C47:G47) -> 
A48: Total Loan | B48: =D26+T26 ->  | C48: =$C$50 ->  | D48: =$C$50 ->  | H48: =SUM(C48:G48) -> 
B49: Annual | C49: PMT (Annual)
A50: Toal Loan Pay back period | B50: =Basis!I43 -> 5 | C50: =PMT(B51,B50,-B48) -> 
A51: Finacial Rate | B51: =Basis!H43 -> 0.08
A54: Scanario 2 | C54: 1 | D54: 2 | E54: 3 | F54: 4 | G54: 5 | H54: Total
A55: Pay Back (Orginal) | C55: =$D$27/$B$59 -> 0 | D55: =$D$27/$B$59 -> 0 | E55: 0 | F55: 0 | G55: 0 | H55: =SUM(C55:G55) -> 0
A56: Financial cost | C56: =C57-C55 ->  | D56: =D57-D55 ->  | H56: =SUM(C56:G56) -> 
A57: Total Loan | B57: =T27+D27 ->  | C57: =$C$59 ->  | D57: =$C$59 ->  | H57: =SUM(C57:G57) -> 
B58: Annual | C58: PMT (Annual)
A59: Toal Loan Pay back period | B59: =B50 -> 5 | C59: =PMT(B60,B59,-B57) -> 
A60: Finacial Rate | B60: =B51 -> 0.08
A63: Scanario 3 | C63: 1 | D63: 2 | E63: 3 | F63: 4 | G63: 5 | H63: Total
A64: Pay Back (Orginal) | C64: =$D$28/$B$68 -> 0 | D64: =$D$28/$B$68 -> 0 | E64: 0 | F64: 0 | G64: 0 | H64: =SUM(C64:G64) -> 0
A65: Financial cost | C65: =C66-C64 ->  | D65: =D66-D64 ->  | E65: =E66-E64 ->  | F65: =F66-F64 ->  | G65: =G66-G64 ->  | H65: =SUM(C65:G65) -> 
A66: Total Loan | B66: =T28+D28 ->  | C66: =$C$68 ->  | D66: =$C$68 ->  | H66: =SUM(C66:G66) -> 
B67: Annual | C67: PMT (Annual)
A68: Toal Loan Pay back period | B68: =B50 -> 5 | C68: =PMT(B69,B68,-B66) -> 
A69: Finacial Rate | B69: =B51 -> 0.08
A72: Scanario 4 | C72: 1 | D72: 2 | E72: 3 | F72: 4 | G72: 5 | H72: Total
A73: Pay Back (Orginal) | C73: =$D$29/$B$77 -> 0 | D73: =$D$29/$B$77 -> 0 | E73: 0 | F73: 0 | G73: 0 | H73: =SUM(C73:G73) -> 0
A74: Financial cost | C74: =C75-C73 ->  | D74: =D75-D73 ->  | H74: =SUM(C74:G74) -> 
A75: Total Loan | B75: =T29+D29 ->  | C75: =$C$77 ->  | D75: =$C$77 ->  | H75: =SUM(C75:G75) -> 
B76: Annual | C76: PMT (Annual)
A77: Toal Loan Pay back period | B77: =B50 -> 5 | C77: =PMT(B78,B77,-B75) -> 
A78: Finacial Rate | B78: =B51 -> 0.08
A81: Scanario 5 | C81: 1 | D81: 2 | E81: 3 | F81: 4 | G81: 5 | H81: Total
A82: Pay Back (Orginal) | C82: =$D$30/$B$86 -> 0 | D82: =$D$30/$B$86 -> 0 | E82: 0 | F82: 0 | G82: 0 | H82: =SUM(C82:G82) -> 0
A83: Financial cost | C83: =C84-C82 ->  | D83: =D84-D82 ->  | H83: =SUM(C83:G83) -> 
A84: Total Loan | B84: =T30+D30 ->  | C84: =$C$86 ->  | D84: =$C$86 ->  | H84: =SUM(C84:G84) -> 
B85: Annual | C85: PMT (Annual)
A86: Toal Loan Pay back period | B86: =B50 -> 5 | C86: =PMT(B87,B86,-B84) -> 
A87: Finacial Rate | B87: =B51 -> 0.08
A90: Scanario 6 | C90: 1 | D90: 2 | E90: 3 | F90: 4 | G90: 5 | H90: Total
A91: Pay Back (Orginal) | C91: =$D$31/$B$95 -> 0 | D91: =$D$31/$B$95 -> 0 | E91: 0 | F91: 0 | G91: 0 | H91: =SUM(C91:G91) -> 0
A92: Financial cost | C92: =C93-C91 ->  | D92: =D93-D91 ->  | H92: =SUM(C92:G92) -> 
A93: Total Loan | B93: =T31+D31 ->  | C93: =$C$95 ->  | D93: =$C$95 ->  | H93: =SUM(C93:G93) -> 
B94: Annual | C94: PMT (Annual)
A95: Toal Loan Pay back period | B95: =B50 -> 5 | C95: =PMT(B96,B95,-B93) -> 
A96: Finacial Rate | B96: =B51 -> 0.08
A100: Scanario 7 | C100: 1 | D100: 2 | E100: 3 | F100: 4 | G100: 5 | H100: Total
A101: Pay Back (Orginal) | C101: =$D$32/$B$105 -> 0 | D101: =$D$32/$B$105 -> 0 | E101: 0 | F101: 0 | G101: 0 | H101: =SUM(C101:G101) -> 0
A102: Financial cost | C102: =C103-C101 ->  | D102: =D103-D101 ->  | H102: =SUM(C102:G102) -> 
A103: Total Loan | B103: =T32+D32 ->  | C103: =$C$105 ->  | D103: =$C$105 ->  | H103: =SUM(C103:G103) -> 
B104: Annual | C104: PMT (Annual)
A105: Toal Loan Pay back period | B105: =B50 -> 5 | C105: =PMT(B106,B105,-B103) -> 
A106: Finacial Rate | B106: =B51 -> 0.08
A109: Scanario 9 | C109: 1 | D109: 2 | E109: 3 | F109: 4 | G109: 5 | H109: Total
A110: Pay Back (Orginal) | C110: =$D$33/$B$114 -> 0 | D110: =$D$33/$B$114 -> 0 | E110: 0 | F110: 0 | G110: 0 | H110: =SUM(C110:G110) -> 0
A111: Financial cost | C111: =C112-C110 ->  | D111: =D112-D110 ->  | H111: =SUM(C111:G111) -> 
A112: Total Loan | B112: =T33+D33 ->  | C112: =$C$114 ->  | D112: =$C$114 ->  | H112: =SUM(C112:G112) -> 
B113: Annual | C113: PMT (Annual)
A114: Toal Loan Pay back period | B114: =B50 -> 5 | C114: =PMT(B115,B114,-B112) ->  | I114: =H112-D33 -> 
A115: Finacial Rate | B115: =B51 -> 0.08

Sheet Feed
D1: firsst 10 yrs
C2: Discount on feed | D2: =Basis!H38 -> 0.05 | E2: =Basis!I38 -> 0 | F2: Of FOB | N2: عدم 10% تخفیف خوراک بعد از 10 سال | P2: =P6/(1-$D$2)-P6+P7/(1-$D$2)-P7 -> 0 | Q2: =Q6/(1-$D$2)-Q6+Q7/(1-$D$2)-Q7 -> 0 | R2: =R6/(1-$D$2)-R6+R7/(1-$D$2)-R7 -> 0 | S2: =S6/(1-$D$2)-S6+S7/(1-$D$2)-S7 -> 0 | T2: =T6/(1-$D$2)-T6+T7/(1-$D$2)-T7 -> 0 | U2: 0 | V2: 0
N3: تخفیف 5% خوراک سالهای آتی | O3: =(O6+O7)/(1-$D$2)*$E$2 -> 0 | P3: =(P6+P7)/(1-$D$2)*$E$2 -> 0 | Q3: 0 | R3: 0 | S3: 0 | T3: 0 | U3: 0 | V3: 0
B4: items | C4: Description | D4: Max. Production | E4: Unit Price, $/T | F4: Flow rate, KTPY | O4: Feed Cost. MM$/Y
F5: Scheme 1 | G5: Scheme 2 | H5: Scheme 3 | I5: Scheme 4 | J5: Scheme 5 | K5: Scheme 6 | L5: Scheme 7 | M5: Scheme 9 | N5: Scheme 10 | O5: Scheme 1 | P5: Scheme 2 | Q5: Scheme 3 | R5: Scheme 4 | S5: Scheme 5 | T5: Scheme 6 | U5: Scheme 7 | V5: Scheme 9
B6: 1 | C6: =Basis!C6 -> Gas Condensate | E6: =Basis!D6*(1-D2) -> 616.55 | F6: =Basis!K22 -> 2350.76688 | O6: =F6*$E$6/1000 -> 1449.36532 | P6: =G6*$E$6/1000 -> 0 | Q6: 0 | R6: 0 | S6: 0 | T6: 0 | U6: 0 | V6: 0
B7: 2 | C7: Co-feed 0 | F7: =Basis!K23 -> 0 | N7: =F7 -> 0 | O7: =F7*$E$7/1000 -> 0 | P7: =G7*$E$7/1000 -> 0 | Q7: 0 | R7: 0 | S7: 0 | T7: 0 | U7: 0 | V7: 0
B8: 3 | C8: Co-feed 1 | N8: =N17*$D$3/1000 -> 0 | O8: =F8*$E$8/1000 -> 0 | P8: =G8*$E$8/1000 -> 0 | Q8: =H8*$E$8/1000 -> 0 | R8: =I8*$E$8/1000 -> 0 | S8: =J8*$E$8/1000 -> 0 | T8: 0 | U8: 0 | V8: 0
B9: 4 | C9: Co-feed 2 | O9: =F9*E9/1000 -> 0
B10: 5 | C10: Co-feed 3 | O10: 0
B11: 6 | C11: Co-feed 4 | O11: 0
B12: 7 | C12: Co-feed 5 | O12: 0
B13: Total | O13: =SUM(O6:O12) -> 1449.36532 | P13: =SUM(P6:P12) -> 0 | Q13: 0 | R13: 0 | S13: 0 | T13: =SUM(T6:T12) -> 0 | U13: =SUM(U6:U12) -> 0 | V13: =SUM(V6:V12) -> 0
C15: Flow Rate from MB (MTD)
F16: MB-Sch 1 | G16: MB-Sch 2 | H16: MB-Sch 3 | I16: MB-Sch 4 | J16: MB-Sch 5 | K16: MB-Sch 6 | L16: MB-Sch 7 | M16: MB-Sch 9 | N16: MB-Sch 10
C17: 1Buttene | F17: 44 | G17: 53 | H17: 42 | I17: 38 | J17: 53 | K17: 42 | L17: 48 | M17: 52
N20: Feed Frace Period | O20: Scheme 1 | P20: Scheme 2 | Q20: Scheme 3 | R20: Scheme 4 | S20: Scheme 5 | T20: Scheme 6 | U20: Scheme 7 | V20: Scheme 9
N21: Feed Cost
N22: year 1 | O22: =(O6+O7)*Basis!$H$27 -> 1159.492256 | P22: =(P6+P7)*Basis!$H$27 -> 0 | Q22: =(Q6+Q7)*Basis!$H$27 -> 0 | R22: =(R6+R7)*Basis!$H$27 -> 0 | S22: =(S6+S7)*Basis!$H$27 -> 0 | T22: =(T6+T7)*Basis!$H$27 -> 0 | U22: =(U6+U7)*Basis!$H$27 -> 0 | V22: =(V6+V7)*Basis!$H$27 -> 0
N23: year 2 | O23: =(O6+O7)*Basis!$I$27 -> 1304.428788 | P23: =(P6+P7)*Basis!$I$27 -> 0 | Q23: =(Q6+Q7)*Basis!$I$27 -> 0 | R23: =(R6+R7)*Basis!$I$27 -> 0 | S23: =(S6+S7)*Basis!$I$27 -> 0 | T23: =(T6+T7)*Basis!$I$27 -> 0 | U23: =(U6+U7)*Basis!$I$27 -> 0 | V23: =(V6+V7)*Basis!$I$27 -> 0
N24: Year 3 | O24: =(O6+O7)*Basis!$J$27 -> 1449.36532 | P24: =(P6+P7)*Basis!$J$27 -> 0 | Q24: =(Q6+Q7)*Basis!$J$27 -> 0 | R24: =(R6+R7)*Basis!$J$27 -> 0 | S24: =(S6+S7)*Basis!$J$27 -> 0 | T24: =(T6+T7)*Basis!$J$27 -> 0 | U24: =(U6+U7)*Basis!$J$27 -> 0 | V24: =(V6+V7)*Basis!$J$27 -> 0
N25: Investment | O25: =CAPEX!G26 ->  | P25: =CAPEX!G27 -> 0 | Q25: =CAPEX!G28 -> 0 | R25: =CAPEX!G29 -> 0 | S25: =CAPEX!G30 -> 0 | T25: =CAPEX!G31 -> 0 | U25: =CAPEX!G32 -> 0 | V25: =CAPEX!G33 -> 0
N26: Fee Gerace period | O26: =IF(O25/O22<1,O25/O22,IF(O25/(O22+O23)<1,1+(O25-O22)/O23,IF(O25/(O22+O23+O24)<1,2+(O25-O22-O23)/O24))) -> 
M46: year | P46: =CAPEX!G26/(O6+O7) ->  | Q46: =CAPEX!G27/(P6+P7) ->  | R46: =CAPEX!G28/(Q6+Q7) ->  | S46: =CAPEX!G29/(R6+R7) ->  | T46: =CAPEX!G30/(Feed!S6+S7) ->  | U46: =CAPEX!G31/(Feed!T6+T7) ->  | V46: =CAPEX!G32/(Feed!U6+U7) ->  | W46: =CAPEX!G33/(Feed!V6+V7) -> 
M47: Feed Grace Period months | P47: =12*P46 ->  | Q47: =12*Q46 -> 
M48: part of 3rd yr | P48: =P46-2 ->  | Q48: =Q46-2 -> 
M49: month of 3rd yr | P49: =P48*12 ->  | Q49: =Q48*12 -> 

Sheet Revenue
B2: Revenue
B3: items | C3: Description | D3: Unit Price, $/T | E3: Annual Production (kta) | M3: Sales, MM$/Y
E4: Scheme 1 | F4: Scheme 2 | M4: Scheme 1, Base case | N4: Scheme 2 Without NHT
B5: 1 | C5: LPG | D5: =Basis!D8 -> 565 | E5: =E19*$D$31/1000 -> 81.74232 | F5: =F19*$D$31/1000 -> 81.74232 | G5: =G19*$D$31/1000 -> 0 | H5: =H19*$D$31/1000 -> 0 | I5: =I19*$D$31/1000 -> 0 | J5: =J19*$D$31/1000 -> 0 | K5: =K19*$D$31/1000 -> 0 | L5: =L19*$D$31/1000 -> 0 | M5: =D5*E5/1000 -> 46.1844108 | N5: =D5*F5/1000 -> 46.1844108
B6: 2 | C6: Kerosene, Jet A1 | D6: =Basis!D12 -> 790 | E6: =E20*$D$31/1000 -> 0 | F6: =F20*$D$31/1000 -> 0 | G6: =G20*$D$31/1000 -> 0 | H6: =H20*$D$31/1000 -> 0 | I6: =I20*$D$31/1000 -> 0 | J6: =J20*$D$31/1000 -> 0 | K6: =K20*$D$31/1000 -> 0 | L6: =L20*$D$31/1000 -> 0 | M6: =D6*E6/1000 -> 0 | N6: =D6*F6/1000 -> 0
B7: 3 | C7: Gasoil | D7: =Basis!D13 -> 724 | E7: =E21*$D$31/1000 -> 763.98696 | F7: 763.98696 | G7: =G21*$D$31/1000 -> 0 | H7: =H21*$D$31/1000 -> 0 | I7: =I21*$D$31/1000 -> 0 | J7: =J21*$D$31/1000 -> 0 | K7: =K21*$D$31/1000 -> 0 | L7: =L21*$D$31/1000 -> 0 | M7: 553.126559 | N7: 553.126559
B8: 4 | C8: Light Naphtha | D8: =Basis!D44 -> 645 | E8: =E22*$D$31/1000 -> 486.10914 | F8: 0 | G8: =G22*$D$31/1000 -> 0.1093206849 | I8: 0 | J8: 0 | K8: 0 | L8: 0 | M8: 313.5403953 | N8: 0
B9: 5 | C9: Heavy Naphtha | D9: =Basis!D45 -> 668 | E9: =E23*$D$31/1000 -> 226.824378 | F9: 0 | G9: =G23*$D$31/1000 -> 0 | H9: 0 | I9: 0 | J9: 0 | K9: 0 | L9: 0 | M9: 151.5186845 | N9: 0
B10: 6 | C10: Fuel Oil | D10: =Basis!D16 -> 465 | E10: =E24*$D$31/1000 -> 9.108 | F10: 9.108 | G10: =G24*$D$31/1000 -> 0 | H10: 0 | I10: 0 | J10: 0 | K10: 0 | L10: 0 | M10: 4.23522 | N10: 4.23522
B11: 7 | C11: MEDIUM NAPHTHA(CCR FEED) | D11: =Basis!D45 -> 668 | E11: =E25*$D$31/1000 -> 754.4559 | F11: 0 | G11: =G25*$D$31/1000 -> 0 | H11: 0 | I11: 0 | J11: 0 | K11: 0 | L11: 0 | M11: 503.9765412 | N11: 0
B12: 8 | C12: Sulfur | D12: =Basis!D14 -> 125 | E12: =E26*$D$31/1000 -> 0 | F12: 0 | G12: =G26*$D$31/1000 -> 0 | H12: 0 | I12: 0 | J12: 0 | K12: 0 | L12: 0 | M12: 0 | N12: 0
C13: Full Range Naphtha | D13: =(Basis!D45*67%+D8*33%)-50 -> 610.41 | F13: 1467.389418 | N13: 895.7091746
B14: Total | E14: =SUM(E5:E13) -> 2322.226698 | F14: =SUM(F5:F13) -> 2322.226698 | G14: =SUM(G5:G12) -> 0.1093206849 | H14: =SUM(H5:H12) ->  | I14: =SUM(I5:I12) -> 0 | J14: =SUM(J5:J12) -> 0 | K14: =SUM(K5:K12) -> 0 | L14: =SUM(L5:L12) -> 0 | M14: =SUM(M5:M12) -> 1572.581811 | N14: =SUM(N5:N13) -> 1499.255364
C16: Flow Rate (TPD)
E17: MB-Sch 1 | F17: MB-Sch 2
D18: BPSD | E18: TPD | F18: TPD
B19: 1 | C19: LPG | D19: 2764 | E19: 247.704 | F19: 247.704
B20: 2 | C20: Kerosene, Jet A1 | D20: 0 | E20: 0 | F20: 0
B21: 3 | C21: Gasoil | D21: 17577 | E21: 2315.112 | F21: 2315.112
B22: 4 | C22: Light Naphtha | D22: 13944.95 | E22: 1473.058 | F22: 0 | G22: =E22/F27 -> 0.3312748027 | H22: of full rane Naphtha
B23: 5 | C23: Heavy Naphtha | D23: 5631.058 | E23: 687.3466 | F23: 0
B24: 6 | C24: Fuel Oil | D24: 197 | E24: =27.6 -> 27.6 | F24: =27.6 -> 27.6
B25: 7 | C25: MEDIUM NAPHTHA( CCR FEED) | D25: 19429.35 | E25: 2286.23 | F25: 0
B26: 8 | C26: Sulfur | E26: =D26*0.159*755/1000 -> 0 | F26: 0
C27: Full Range Naphtha | E27: 0 | F27: =E22+E23+E25 -> 4446.6346
C28: TPD | E28: =SUM(E18:E27) -> 7037.0506 | F28: =SUM(F18:F27) -> 7037.0506
C29: KTA | E29: =E28*$D$31/1000 -> 2322.226698 | F29: =F28*$D$31/1000 -> 2322.226698
C31: On stream day | D31: =Basis!H33 -> 330

Sheet Utility
C2: Utilities Cost
C3: items | D3: Description | E3: Max. Operation | F3: Unit Price | G3: Unit | H3: Consumption Unit | I3: Consumption | Q3: Cost, MM$/Y
I4: Scheme 1 | J4: Scheme 2 | K4: Scheme 3 | L4: Scheme 4 | M4: Scheme 5 | N4: Scheme 6 | O4: Scheme 7 | P4: Scheme 9 | Q4: Scheme 1 | R4: Scheme 2 | S4: Scheme 3 | T4: Scheme 4 | U4: Scheme 5 | V4: Scheme 6 | W4: Scheme 7 | X4: Scheme 9
C5: 1 | D5: Power | G5: $/ MWh | H5: MW | I5: 126 | J5: 126 | K5: 126 | L5: 126 | M5: 126 | N5: 126 | O5: 126 | P5: =I5 -> 126 | Q5: =$F$5*I5*24*330/10^6 -> 0 | R5: 0 | S5: 0 | T5: 0 | U5: 0 | V5: 0 | W5: 0 | X5: 0
C6: 1 | D6: Steam | G6: $/ t | H6: t/h | I6: 700 | J6: 700 | K6: 700 | L6: 700 | M6: 700 | N6: 700 | O6: 700 | P6: =I6 -> 700 | Q6: =$F$6*I6*24*330/10^6 -> 0 | R6: 0 | S6: 0 | T6: 0 | U6: 0 | V6: 0 | W6: 0 | X6: 0
C7: 1 | D7: BFW | G7: $/ m3 | H7: m3/h | Q7: =$F$7*I7*24*330/10^6 -> 0 | R7: 0 | S7: 0 | T7: 0 | U7: 0 | V7: 0 | W7: 0 | X7: 0
C8: 1 | D8: DMW | G8: $/ m3 | H8: m3/h | Q8: =$F$8*I8*24*330/10^6 -> 0 | R8: 0 | S8: 0 | T8: 0 | U8: 0 | V8: 0 | W8: 0 | X8: 0
C9: 1 | D9: Fire make up water | G9: $/ m3 | H9: m3/h | Q9: =$F$9*I9*24*330/10^6 -> 0 | R9: 0 | S9: 0 | T9: 0 | U9: 0 | V9: 0 | W9: 0 | X9: 0
C10: 1 | D10: Potable water | F10: =100000/800000 -> 0.125 | G10: $/ m3 | H10: m3/h | I10: 15 | Q10: =$F$13*I10*24*330/10^6 -> 0.007425 | R10: =$F$10*J10*24*330/10^6 -> 0 | S10: 0 | T10: 0 | U10: 0 | V10: 0 | W10: 0 | X10: 0
C11: 1 | D11: Sea Water | G11: $/ m3 | H11: m3/h | Q11: =$F$13*I11*24*330/10^6 -> 0 | R11: =$F$11*J11*24*330/10^6 -> 0 | S11: 0 | T11: 0 | U11: 0 | V11: 0 | W11: 0 | X11: 0
C12: 1 | D12: NG for H2 feed 2740 Nm3/hr | F12: =100000/800000 -> 0.125 | G12: $/ Nm3 | H12: Nm3/h | I12: 2740 | Q12: 1.3563 | R12: =$F$12*J12*24*330/10^6 -> 0 | S12: 0 | T12: 0 | U12: 0 | V12: 0 | W12: 0 | X12: 0
C13: 1 | D13: NG as fuel | F13: =50000/800000 -> 0.0625 | G13: $/ Nm3 | H13: Nm3/h | I13: 17370 | Q13: =$F$13*I13*24*330/10^6 -> 8.59815 | R13: 0 | S13: 0 | T13: 0 | U13: 0 | V13: 0 | W13: 0 | X13: 0
C14: 1 | D14: Plant Air | G14: $/ Nm3 | H14: Nm3/h | Q14: =$F$14*I14*24*330/10^6 -> 0 | R14: 0 | S14: 0 | T14: 0 | U14: 0 | V14: 0 | W14: 0 | X14: 0
C15: 1 | D15: Nitrogen | G15: $/ Nm3 | H15: Nm3/h | Q15: =$F$15*I15*24*330/10^6 -> 0 | R15: 0 | S15: 0 | T15: 0 | U15: 0 | V15: 0 | W15: 0 | X15: 0
C16: 1 | D16: Desal Water | G16: $/ m3 | H16: m3/h | Q16: =$F$16*I16*24*330/10^6 -> 0 | R16: 0 | S16: 0 | T16: 0 | U16: 0 | V16: 0 | W16: 0 | X16: 0
C17: 1 | P17: 0 | Q17: =F17*I17*24*330/10^9 -> 0 | R17: 0 | S17: 0 | T17: 0 | U17: 0 | V17: 0 | W17: 0 | X17: 0
C18: Total | P18: 0 | Q18: =SUM(Q5:Q17) -> 9.961875 | R18: =SUM(R7:R11)+R16+R5 -> 0 | S18: 0 | T18: 0 | U18: 0 | V18: 0 | W18: 0 | X18: 0

Sheet Chem.
C2: Chemicals and Catalyst Cost
C3: items | D3: Description | E3: Max. Operation | F3: Unit Price | G3: Unit | H3: Consumption Unit | I3: Consumption | R3: Cost, MM$/Y
I4: Scheme 1 | J4: Scheme 2 | K4: Scheme 3 | L4: Scheme 4 | M4: Scheme 5 | N4: Scheme 6 | O4: Scheme 7 | P4: Scheme 9 | Q4: Scheme 10 | R4: Scheme 1 | S4: Scheme 2 | T4: Scheme 3 | U4: Scheme 4 | V4: Scheme 5 | W4: Scheme 6 | X4: Scheme 7 | Y4: Scheme 9
C5: 1 | D5: Chemicals | I5: =E5*29.8 -> 0 | R5: =F5*I5*24*330/10^6 -> 0
C6: 2 | D6: Catalyst | I6: =E6*2500 -> 0 | R6: 0
C7: 3 | I7: =E7*13400*22.4/17.05 -> 0 | R7: 0
C8: 4 | R8: 0
C9: 5 | R9: 0
C10: 6 | R10: 0
C11: 7 | R11: 0
C12: 8 | R12: 0
C13: 9 | R13: =F13*I13*24*330/10^9 -> 0
C14: Total | R14: =1/100*Feed!O13 -> 14.4936532 | S14: =2/100*(Feed!P6+Feed!P7) -> 0 | T14: =2/100*(Feed!Q6+Feed!Q7) -> 0 | U14: =2/100*(Feed!R6+Feed!R7) -> 0 | V14: =2/100*(Feed!S6+Feed!S7) -> 0 | W14: =2/100*(Feed!T6+Feed!T7) -> 0 | X14: =2/100*(Feed!U6+Feed!U7) -> 0 | Y14: =2/100*(Feed!V6+Feed!V7) -> 0

Sheet Manpower (hidden)
B3: MANPOWER ESTIMATION
H7: Dehloran
D8: Dep./category | E8: Daily Time WorK | F8: Shift Time WorK | G8: NGL 3200 | H8: Olefin Unit | I8: HDPE Unit | J8: LLDPE Unit | K8: PP Unit | L8: General
B9: Direct Staff | C9: Operation | D9: Plant Manager | E9: x | L9: 1
D10: Supervisor | E10: x | L10: 1
D11: Shift Supervisor | F11: x | H11: 4 | I11: 4 | J11: 4 | K11: 4
D12: Board Man | F12: x | H12: 44 | I12: 20 | J12: 20 | K12: 20
D13: Site Man | F13: x | H13: 52 | I13: 24 | J13: 24 | K13: 24
D14: Worker | F14: x | H14: 8 | I14: 4 | J14: 4 | K14: 4
C15: Maintenance | D15: Electrical | E15: x | H15: 1 | I15: 1 | J15: 1 | K15: 1
F16: x | H16: 8 | I16: 4 | J16: 4 | K16: 4
D17: Instrument | E17: x | H17: 1 | I17: 1 | J17: 1 | K17: 1
F18: x | H18: 8 | I18: 4 | J18: 4 | K18: 4
D19: Analyser | E19: x | L19: 1
F20: x | L20: 12
D21: Mechanical | E21: x | H21: 1 | I21: 1 | J21: 1 | K21: 1
F22: x | H22: 8 | I22: 4 | J22: 4 | K22: 4
D23: Maintenance Services | E23: x | L23: 10
F24: x | L24: 50
B25: Indirect Staff | C25: Technical Services | D25: Labratory Dep. | E25: x | H25: 2 | I25: 2 | J25: 2 | K25: 2
F26: x | H26: 8 | I26: 4 | J26: 4 | K26: 4
D27: Process Engineering Dep. | E27: x | L27: 6
D28: R&D Dep. | E28: x | L28: 2
D29: General Engineering Dep. | E29: x | L29: 7
D30: Inspection & QC | E30: x | L30: 11
C31: Management Planning | D31: Director Manager | E31: x | L31: 1
D32: Complex Manager | E32: x | L32: 1
D33: Planning | E33: x | L33: 6
D34: IT Dep. | E34: x | L34: 3
C35: Human resources | D35: Human resources | E35: x | L35: 5
D36: Human resources Service | E36: x | L36: 5
D37: Trainig Dep. | E37: x | L37: 2
C38: Commercial Dep. | D38: Sales Dep. | E38: x | L38: 5
D39: Procurment Dep. | E39: x | L39: 8
D40: Inventory Dep. | E40: x | L40: 12
D41: Indent Regulator | E41: x | L41: 3
C42: Financial Dep. | D42: Cost Accunting | E42: x | L42: 10
D43: Financial Accounting | E43: x | L43: 5
D44: Internal Auditing | E44: x | L44: 3
D45: Management Accounting | E45: x | L45: 4
C46: HSE Dep. | D46: Fire fighting Dep. | E46: x | L46: 3
F47: x | L47: 36
D48: Safety | F48: x | L48: 12
D49: Environment & Healthy Dep. | E49: x | L49: 1
C50: Security Dep. | E50: x | L50: 4
F51: x | L51: 60
B52: Total Persons: | G52: 314 | H52: =SUM(H9:H26) -> 145 | I52: =SUM(I9:I26) -> 73 | J52: =SUM(J9:J26) -> 73 | K52: =SUM(K9:K26) -> 73 | L52: =SUM(L9:L51) -> 290
B53: Total Labor Cost (MM $/Year) | G53: =12*G52*60000000/50000/10^6 -> 4.5216 | H53: =12*H52*60000000/50000/10^6 -> 2.088 | I53: =12*I52*60000000/50000/10^6 -> 1.0512 | J53: =12*J52*60000000/50000/10^6 -> 1.0512 | K53: =12*K52*60000000/50000/10^6 -> 1.0512 | L53: =12*L52*40000000/50000/10^6 -> 2.784
L56: =L53/2 -> 1.392
M57: =L56/6 -> 0.232

Sheet Opex
B2: Fixed Operating Cost
B3: items | C3: Description | D3: Percent of Fixed Cost | E3: Remark | H3: Costs, MM$/Y
H4: Scheme 1 | I4: Scheme 2 | J4: Scheme 3 | K4: Scheme 4 | L4: Scheme 5 | M4: Scheme 6 | N4: Scheme 7 | O4: Scheme 9
B5: 1 | C5: Labor | D5: Plant organization chart | H5: 6 | I5: 6
B6: 2 | C6: Maintenance Cost | D6: 0.007 | E6: Of fixed Investment | H6: =$D$6*CAPEX!P11 -> 3.508929815 | I6: =D6*(CAPEX!$P$11-CAPEX!$P$12) -> 3.103286669
B7: 3 | C7: Insurance | D7: 0.001 | E7: Of fixed Investment | H7: =$D$7*CAPEX!P11 -> 0.5012756878 | I7: =D7*(CAPEX!$P$11-CAPEX!$P$12) -> 0.443326667
B8: 4 | C8: Plant Overhead | D8: 0.006 | E8: Of fixed Investment | H8: =$D$8*CAPEX!P11 -> 3.007654127 | I8: =D8*(CAPEX!$P$11-CAPEX!$P$12) -> 2.659960002
B9: Total Fixed Costs | H9: =SUM(H5:H8) -> 13.01785963 | I9: =SUM(I5:I8) -> 12.20657334 | J9: 0 | K9: 0 | L9: 0 | M9: 0 | N9: 0 | O9: 0
B11: Variable Operating Cost
B12: items | C12: Description | E12: Remark | H12: Costs, MM$/Y
H13: Scheme 1 | I13: Scheme 2 | J13: Scheme 3 | K13: Scheme 4 | L13: Scheme 5 | M13: Scheme 6 | N13: Scheme 7 | O13: Scheme 9
B14: 1 | C14: Feed | H14: =Feed!O13 -> 1449.36532 | I14: =Feed!O13 -> 1449.36532
B15: 2 | C15: Utility | H15: =Utility!Q18 -> 9.961875 | I15: =Utility!Q18 -> 9.961875
B16: 3 | C16: Chemical & catalyst | H16: ='Chem.'!R14 -> 14.4936532 | I16: ='Chem.'!R14 -> 14.4936532
B17: Total Variable Costs | H17: =SUM(H14:H16) -> 1473.820848 | I17: =SUM(I14:I16) -> 1473.820848 | J17: =SUM(J15:J16) -> 0 | K17: =SUM(K15:K16) -> 0 | L17: =SUM(L15:L16) -> 0 | M17: =SUM(M15:M16) -> 0 | N17: =SUM(N15:N16) -> 0 | O17: =SUM(O15:O16) -> 0

Sheet feed grace
B2: Feed Loan for the frst Year of Grace Period
B3: Description | C3: scheme 1 | E3: scheme 2 | G3: scheme 3 | I3: scheme 4 | K3: scheme 5 | M3: scheme 6 | O3: scheme 7 | Q3: scheme9
B4: Origin Loan | C4: =IF(Feed!O26>1,Feed!O22,Feed!O22*Feed!O26) ->  | E4: =IF(Feed!P26>1,Feed!P22,Feed!P22*Feed!P26) ->  | G4: =IF(Feed!Q26>1,Feed!Q22,Feed!O22*Feed!Q26) ->  | I4: =IF(Feed!R26>1,Feed!R22,Feed!R22*Feed!R26) ->  | K4: =IF(Feed!S26>1,Feed!S22,Feed!S22*Feed!S26) ->  | M4: =IF(Feed!T26>1,Feed!T22,Feed!T22*Feed!T26) ->  | O4: =IF(Feed!U26>1,Feed!U22,Feed!U22*Feed!U26) ->  | Q4: =IF(Feed!V26>1,Feed!V22,Feed!V22*Feed!V26) -> 
B5: Garce Period (months) | C5: =Feed!O26*12 ->  | E5: =Feed!P26*12 ->  | G5: =Feed!Q26*12 ->  | I5: =Feed!R26*12 ->  | K5: =Feed!S26*12 ->  | M5: =Feed!T26*12 ->  | O5: =Feed!U26*12 ->  | Q5: =Feed!V26*12 -> 
B6: Interest on Grace Period for the fist year | C6: =Basis!H50*(0+Basis!H30)/2 -> 0.04 | E6: =C6 -> 0.04 | G6: =C6 -> 0.04 | I6: =C6 -> 0.04 | K6: =C6 -> 0.04 | M6: =C6 -> 0.04 | O6: =C6 -> 0.04 | Q6: =C6 -> 0.04
B7: Interest on Grace Period for the Second year | C7: =Basis!H50*Basis!H30 -> 0.08 | E7: =C7 -> 0.08 | G7: =C7 -> 0.08 | I7: =C7 -> 0.08 | K7: =C7 -> 0.08 | M7: =C7 -> 0.08 | O7: =C7 -> 0.08 | Q7: =C7 -> 0.08
B8: Interest on Grace Period for the 3rd year | C8: =Basis!H50*Basis!H30 -> 0.08 | E8: 0.08 | G8: 0.08 | I8: 0.08 | K8: 0.08 | M8: 0.08 | O8: 0.08 | Q8: 0.08
B9: Interest on Grace Period fist yr | C9: =C6*C4 ->  | E9: =E6*E4 ->  | G9: =G6*G4 ->  | I9: =I6*I4 ->  | K9: =K6*K4 ->  | M9: =M6*M4 ->  | O9: =O6*O4 ->  | Q9: =Q6*Q4 -> 
B10: Interest on Grace Period secnd yr | C10: =C4*C7 ->  | E10: =E4*E7 ->  | G10: =G4*G7*(G5-12)/12+G4*G6 ->  | I10: =I4*I7 ->  | K10: =K4*K7 ->  | M10: =M4*M7 ->  | O10: =O4*O7 ->  | Q10: =Q4*Q7 -> 
B11: Interest on Grace Period 3rd yr | C11: =C4*C8*(C5-24)/12 ->  | E11: =E4*E8*(E5-24)/12 ->  | G11: =G4*G8*(G5-24)/12 ->  | I11: =I4*I8*(I5-24)/12 ->  | K11: =K4*K8*(K5-24)/12 ->  | M11: =M4*M8*(M5-24)/12 ->  | O11: =O4*O8*(O5-24)/12 ->  | Q11: =Q4*Q8*(Q5-24)/12 -> 
B12: Total Loan Origin and Grace period interest | C12: =C4+SUM(C9:C11) ->  | E12: =E4+SUM(E9:E11) ->  | G12: =G4+G9+G10 ->  | I12: =I4+I9+I10+I11 ->  | K12: =K4+K9+K10+K11 ->  | M12: =M4+M9+M10+M11 ->  | O12: =O4+O9+O10+O11 ->  | Q12: =Q4+Q9+Q10+Q11 -> 
B13: Total Repayment period (months) | C13: =Basis!I30*12 -> 96 | E13: =C13 -> 96 | G13: =C13 -> 96 | I13: =C13 -> 96 | K13: =C13 -> 96 | M13: =C13 -> 96 | O13: =C13 -> 96 | Q13: =E13 -> 96
B14: instalment interval | C14: 12 | E14: =C14 -> 12 | G14: =C14 -> 12 | I14: =C14 -> 12 | K14: =C14 -> 12 | M14: =C14 -> 12 | O14: =C14 -> 12 | Q14: =E14 -> 12
B15: PMT (Annual) | C15: =PMT(Basis!H30,Basis!I30,-'feed grace'!C12) ->  | E15: =PMT(Basis!H30,Basis!I30,-'feed grace'!E12) ->  | G15: =PMT(Basis!H30,Basis!I30,-G12) ->  | I15: =PMT(Basis!H30,Basis!I30,-I12) ->  | K15: =PMT(Basis!H30,Basis!I30,-K12) ->  | M15: =PMT(Basis!H30,Basis!I30,-M12) ->  | O15: =PMT(Basis!H30,Basis!I30,-O12) ->  | Q15: =PMT(Basis!H30,Basis!I30,-Q12) -> 
B17: Loan Pay back | C17: scheme 1 | E17: scheme 2 | G17: scheme 3 | I17: scheme 4 | K17: scheme 5 | M17: scheme 6 | O17: scheme 7 | Q17: scheme9
B18: Payment years | C18: Pay Back (Orginal) | D18: Finacial Rate | E18: Pay Back (Orginal) | F18: Finacial Rate | G18: Pay Back (Orginal) | H18: Finacial Rate | I18: Pay Back (Orginal) | J18: Finacial Rate | K18: Pay Back (Orginal) | L18: Finacial Rate | M18: Pay Back (Orginal) | N18: Finacial Rate | O18: Pay Back (Orginal) | P18: Finacial Rate | Q18: Pay Back (Orginal) | R18: Finacial Rate
B19: 1 | C19: =C15-D19 ->  | D19: =C12*Basis!H30 ->  | E19: =E15-F19 ->  | F19: =E12*Basis!H30 ->  | I19: =I15-J19 ->  | J19: =I12*Basis!H30 ->  | K19: =K15-L19 ->  | L19: =K12*Basis!H30 ->  | M19: =M15-N19 ->  | N19: =M12*Basis!H30 ->  | O19: =O15-P19 ->  | P19: =O12*Basis!H30 ->  | Q19: =Q15-R19 ->  | R19: =Q12*Basis!H30 -> 
B20: 2 | C20: =C15-D20 ->  | D20: =(C12-C19)*Basis!H30 ->  | E20: =E15-F20 ->  | F20: =(E12-E19)*Basis!H30 ->  | I20: =I15-J20 ->  | J20: =(I12-I19)*Basis!H30 ->  | K20: =K15-L20 ->  | L20: =(K12-K19)*Basis!H30 ->  | M20: =M15-N20 ->  | N20: =(M12-M19)*Basis!H30 ->  | O20: =O15-P20 ->  | P20: =(O12-O19)*Basis!H30 ->  | Q20: =Q15-R20 ->  | R20: =(Q12-Q19)*Basis!H30 -> 
B21: 3 | C21: =C15-D21 ->  | D21: =(C12-C19-C20)*Basis!H30 ->  | E21: =E15-F21 ->  | F21: =(E12-E19-E20)*Basis!H30 ->  | I21: =I15-J21 ->  | J21: =(I12-I19-I20)*Basis!H30 ->  | K21: =K15-L21 ->  | L21: =(K12-K19-K20)*Basis!H30 ->  | M21: =M15-N21 ->  | N21: =(M12-M19-M20)*Basis!H30 ->  | O21: =O15-P21 ->  | P21: =(O12-O19-O20)*Basis!H30 ->  | Q21: =Q15-R21 ->  | R21: =(Q12-Q19-Q20)*Basis!H30 -> 
B22: 4 | C22: =C15-D22 ->  | D22: =(C12-SUM(C19:C21))*Basis!H30 ->  | E22: =E15-F22 ->  | F22: =(E12-SUM(E19:E21))*Basis!H30 ->  | I22: =I15-J22 ->  | J22: =(I12-SUM(I19:I21))*Basis!H30 ->  | K22: =K15-L22 ->  | L22: =(K12-SUM(K19:K21))*Basis!H30 ->  | M22: =M15-N22 ->  | N22: =(M12-SUM(M19:M21))*Basis!H30 ->  | O22: =O15-P22 ->  | P22: =(O12-SUM(O19:O21))*Basis!H30 ->  | Q22: =Q15-R22 ->  | R22: =(Q12-SUM(Q19:Q21))*Basis!H30 -> 
B23: 5 | C23: =C15-D23 ->  | D23: =(C12-SUM(C19:C22))*Basis!H30 ->  | E23: =E15-F23 ->  | F23: =(E12-SUM(E19:E22))*Basis!H30 ->  | I23: =I15-J23 ->  | J23: =(I12-SUM(I19:I22))*Basis!H30 ->  | K23: =K15-L23 ->  | L23: =(K12-SUM(K19:K22))*Basis!H30 ->  | M23: =M15-N23 ->  | N23: =(M12-SUM(M19:M22))*Basis!H30 ->  | O23: =O15-P23 ->  | P23: =(O12-SUM(O19:O22))*Basis!H30 ->  | Q23: =Q15-R23 ->  | R23: =(Q12-SUM(Q19:Q22))*Basis!H30 -> 
B24: 6 | C24: =C15-D24 ->  | D24: =(C12-SUM(C19:C23))*Basis!H30 ->  | E24: =E15-F24 ->  | F24: =(E12-SUM(E19:E23))*Basis!H30 ->  | I24: =I15-J24 ->  | J24: =(I12-SUM(I19:I23))*Basis!H30 ->  | K24: =K15-L24 ->  | L24: =(K12-SUM(K19:K23))*Basis!H30 ->  | M24: =M15-N24 ->  | N24: =(M12-SUM(M19:M23))*Basis!H30 ->  | O24: =O15-P24 ->  | P24: =(O12-SUM(O19:O23))*Basis!H30 ->  | Q24: =Q15-R24 ->  | R24: =(Q12-SUM(Q19:Q23))*Basis!H30 -> 
B25: 7 | C25: =C15-D25 ->  | D25: =(C12-SUM(C19:C24))*Basis!H30 ->  | E25: =E15-F25 ->  | F25: =(E12-SUM(E19:E24))*Basis!H30 ->  | I25: =I15-J25 ->  | J25: =(I12-SUM(I19:I24))*Basis!H30 ->  | K25: =K15-L25 ->  | L25: =(K12-SUM(K19:K24))*Basis!H30 ->  | M25: =M15-N25 ->  | N25: =(M12-SUM(M19:M24))*Basis!H30 ->  | O25: =O15-P25 ->  | P25: =(O12-SUM(O19:O24))*Basis!H30 ->  | Q25: =Q15-R25 ->  | R25: =(Q12-SUM(Q19:Q24))*Basis!H30 -> 
B26: 8 | C26: =C15-D26 ->  | D26: =(C12-SUM(C19:C25))*Basis!H30 ->  | E26: =E15-F26 ->  | F26: =(E12-SUM(E19:E25))*Basis!H30 ->  | I26: =I15-J26 ->  | J26: =(I12-SUM(I19:I25))*Basis!H30 ->  | K26: =K15-L26 ->  | L26: =(K12-SUM(K19:K25))*Basis!H30 ->  | M26: =M15-N26 ->  | N26: =(M12-SUM(M19:M25))*Basis!H30 ->  | O26: =O15-P26 ->  | P26: =(O12-SUM(O19:O25))*Basis!H30 ->  | Q26: =Q15-R26 ->  | R26: =(Q12-SUM(Q19:Q25))*Basis!H30 -> 
B27: Total | C27: =SUM(C19:C26) ->  | D27: =SUM(D19:D26) ->  | E27: =SUM(E19:E26) ->  | F27: =SUM(F19:F26) ->  | I27: =SUM(I19:I26) -> 
B31: Feed Loan for the scnd Year of Grace Period
B32: Description | C32: scheme 1 | E32: scheme 2 | G32: scheme 3 | I32: scheme 4 | K32: scheme 5 | M32: scheme 6 | O32: scheme 7 | Q32: scheme9
B33: Origin Loan | C33: =IF(Feed!O26>2,Feed!O23,Feed!O23*(Feed!O26-1)) ->  | E33: =IF(Feed!P26>2,Feed!P23,Feed!P23*(Feed!P26-1)) ->  | G33: =IF(Feed!Q26>2,Feed!Q23,Feed!Q23*(Feed!Q26-1)) ->  | I33: =IF(Feed!R26>2,Feed!R23,Feed!R23*(Feed!R26-1)) ->  | K33: =IF(Feed!S26>2,Feed!S23,Feed!S23*(Feed!S26-1)) ->  | M33: =IF(Feed!T26>2,Feed!T23,Feed!T23*(Feed!T26-1)) ->  | O33: =IF(Feed!U26>2,Feed!U23,Feed!U23*(Feed!U26-1)) ->  | Q33: =IF(Feed!V26>2,Feed!V23,Feed!V23*(Feed!V26-1)) -> 
B34: Garce Period (months) | C34: =C5-12 ->  | E34: =E5-12 ->  | G34: =G5-12 ->  | I34: =I5-12 ->  | K34: =K5-12 ->  | M34: =M5-12 ->  | O34: =O5-12 ->  | Q34: =Q5-12 -> 
B35: Interest on Grace Period for the2nd year | C35: =Basis!H50*4% -> 0.04 | E35: =C35 -> 0.04 | G35: =C35 -> 0.04 | I35: =C35 -> 0.04 | K35: =C35 -> 0.04 | M35: =C35 -> 0.04 | O35: =C35 -> 0.04 | Q35: 0.04
B36: Interest on Grace Period for the 3rd year | C36: =Basis!H50*8% -> 0.08 | E36: =C36 -> 0.08 | G36: =C36 -> 0.08 | I36: =C36 -> 0.08 | K36: =C36 -> 0.08 | M36: =C36 -> 0.08 | O36: =C36 -> 0.08 | Q36: 0.08
B37: Interest on Grace Period 2nd yr | C37: =C35*C33 ->  | E37: =E35*E33 ->  | G37: =G35*G33*G34/12 ->  | I37: =I35*I33 ->  | K37: =K35*K33 ->  | M37: =M35*M33 ->  | O37: =O35*O33 ->  | Q37: =Q35*Q33 -> 
B38: Interest on Grace Period 3rd yr | C38: =C33*C36*(C34-12)/12 ->  | E38: =E33*E36*(E34-12)/12 ->  | I38: =I33*I36*(I34-12)/12 ->  | K38: =K33*K36*(K34-12)/12 ->  | M38: =M33*M36*(M34-12)/12 ->  | O38: =O33*O36*(O34-12)/12 ->  | Q38: =Q33*Q36*(Q34-12)/12 -> 
B39: Total Loan Origin and Grace period interest | C39: =C33+C37+C38 ->  | E39: =E33+E37+E38 ->  | G39: =G33+G37+#REF! ->  | I39: =I33+I37+I38 ->  | K39: =K33+K37+K38 ->  | M39: =M33+M37+M38 ->  | O39: =O33+O37+O38 ->  | Q39: =Q33+Q37+Q38 -> 
B40: Total Repayment period (months) | C40: =Basis!I30*12 -> 96 | E40: =C40 -> 96 | G40: =C40 -> 96 | I40: =C40 -> 96 | K40: =C40 -> 96 | M40: =C40 -> 96 | O40: =C40 -> 96 | Q40: =E40 -> 96
B41: instalment interval | C41: 12 | E41: =C41 -> 12 | G41: =C41 -> 12 | I41: =C41 -> 12 | K41: =C41 -> 12 | M41: =C41 -> 12 | O41: =C41 -> 12 | Q41: =E41 -> 12
B42: PMT (Annual) | C42: =PMT(Basis!H30,Basis!I30,-C39) ->  | E42: =PMT(Basis!H30,Basis!I30,-E39) ->  | G42: =PMT(Basis!H30,Basis!I30,-G39) ->  | I42: =PMT(Basis!H30,Basis!I30,-I39) ->  | K42: =PMT(Basis!H30,Basis!I30,-K39) ->  | M42: =PMT(Basis!H30,Basis!I30,-M39) ->  | O42: =PMT(Basis!H30,Basis!I30,-O39) ->  | Q42: =PMT(Basis!H30,Basis!I30,-Q39) -> 
B44: Loan Pay back | C44: scheme 1 | E44: scheme 2 | G44: scheme 3 | I44: scheme 4 | K44: scheme 5 | M44: scheme 6 | O44: scheme 7 | Q44: scheme9
B45: Payment years | C45: Pay Back (Orginal) | D45: Finacial Rate | E45: Pay Back (Orginal) | F45: Finacial Rate | G45: Pay Back (Orginal) | H45: Finacial Rate | I45: Pay Back (Orginal) | J45: Finacial Rate | K45: Pay Back (Orginal) | L45: Finacial Rate | M45: Pay Back (Orginal) | N45: Finacial Rate | O45: Pay Back (Orginal) | P45: Finacial Rate | Q45: Pay Back (Orginal) | R45: Finacial Rate
B46: 1 | C46: =C42-D46 ->  | D46: =C39*Basis!H30 ->  | E46: =E42-F46 ->  | F46: =E39*Basis!H30 ->  | G46: =G42-H46 ->  | H46: =G39*Basis!H30 ->  | I46: =I42-J46 ->  | J46: =I39*Basis!H30 ->  | K46: =K42-L46 ->  | L46: =K39*Basis!H30 ->  | M46: =M42-N46 ->  | N46: =M39*Basis!H30 ->  | O46: =O42-P46 ->  | P46: =O39*Basis!H30 ->  | Q46: =Q42-R46 ->  | R46: =Q39*Basis!H30 -> 
B47: 2 | C47: =C42-D47 ->  | D47: =(C39-C46)*Basis!H30 ->  | E47: =E42-F47 ->  | F47: =(E39-E46)*Basis!H30 ->  | G47: =G42-H47 ->  | H47: =(G39-G46)*Basis!H30 ->  | I47: =I42-J47 ->  | J47: =(I39-I46)*Basis!H30 ->  | K47: =K42-L47 ->  | L47: =(K39-K46)*Basis!H30 ->  | M47: =M42-N47 ->  | N47: =(M39-M46)*Basis!H30 ->  | O47: =O42-P47 ->  | P47: =(O39-O46)*Basis!H30 ->  | Q47: =Q42-R47 ->  | R47: =(Q39-Q46)*Basis!H30 -> 
B48: 3 | C48: =C42-D48 ->  | D48: =(C39-C46-C47)*Basis!H30 ->  | E48: =E42-F48 ->  | F48: =(E39-E46-E47)*Basis!H30 ->  | G48: =G42-H48 ->  | H48: =(G39-G46-G47)*Basis!H30 ->  | I48: =I42-J48 ->  | J48: =(I39-I46-I47)*Basis!H30 ->  | K48: =K42-L48 ->  | L48: =(K39-K46-K47)*Basis!H30 ->  | M48: =M42-N48 ->  | N48: =(M39-M46-M47)*Basis!H30 ->  | O48: =O42-P48 ->  | P48: =(O39-O46-O47)*Basis!H30 ->  | Q48: =Q42-R48 ->  | R48: =(Q39-Q46-Q47)*Basis!H30 -> 
B49: 4 | C49: =C42-D49 ->  | D49: =(C39-SUM(C46:C48))*Basis!H30 ->  | E49: =E42-F49 ->  | F49: =(E39-SUM(E46:E48))*Basis!H30 ->  | G49: =G42-H49 ->  | H49: =(G39-SUM(G46:G48))*Basis!H30 ->  | I49: =I42-J49 ->  | J49: =(I39-SUM(I46:I48))*Basis!H30 ->  | K49: =K42-L49 ->  | L49: =(K39-SUM(K46:K48))*Basis!H30 ->  | M49: =M42-N49 ->  | N49: =(M39-SUM(M46:M48))*Basis!H30 ->  | O49: =O42-P49 ->  | P49: =(O39-SUM(O46:O48))*Basis!H30 ->  | Q49: =Q42-R49 ->  | R49: =(Q39-SUM(Q46:Q48))*Basis!H30 -> 
B50: 5 | C50: =C42-D50 ->  | D50: =(C39-SUM(C46:C49))*Basis!H30 ->  | E50: =E42-F50 ->  | F50: =(E39-SUM(E46:E49))*Basis!H30 ->  | G50: =G42-H50 ->  | H50: =(G39-SUM(G46:G49))*Basis!H30 ->  | I50: =I42-J50 ->  | J50: =(I39-SUM(I46:I49))*Basis!H30 ->  | K50: =K42-L50 ->  | L50: =(K39-SUM(K46:K49))*Basis!H30 ->  | M50: =M42-N50 ->  | N50: =(M39-SUM(M46:M49))*Basis!H30 ->  | O50: =O42-P50 ->  | P50: =(O39-SUM(O46:O49))*Basis!H30 ->  | Q50: =Q42-R50 ->  | R50: =(Q39-SUM(Q46:Q49))*Basis!H30 -> 
B51: 6 | C51: =C42-D51 ->  | D51: =(C39-SUM(C46:C50))*Basis!H30 ->  | E51: =E42-F51 ->  | F51: =(E39-SUM(E46:E50))*Basis!H30 ->  | G51: =G42-H51 ->  | H51: =(G39-SUM(G46:G50))*Basis!H30 ->  | I51: =I42-J51 ->  | J51: =(I39-SUM(I46:I50))*Basis!H30 ->  | K51: =K42-L51 ->  | L51: =(K39-SUM(K46:K50))*Basis!H30 ->  | M51: =M42-N51 ->  | N51: =(M39-SUM(M46:M50))*Basis!H30 ->  | O51: =O42-P51 ->  | P51: =(O39-SUM(O46:O50))*Basis!H30 ->  | Q51: =Q42-R51 ->  | R51: =(Q39-SUM(Q46:Q50))*Basis!H30 -> 
B52: 7 | C52: =C42-D52 ->  | D52: =(C39-SUM(C46:C51))*Basis!H30 ->  | E52: =E42-F52 ->  | F52: =(E39-SUM(E46:E51))*Basis!H30 ->  | G52: =G42-H52 ->  | H52: =(G39-SUM(G46:G51))*Basis!H30 ->  | I52: =I42-J52 ->  | J52: =(I39-SUM(I46:I51))*Basis!H30 ->  | K52: =K42-L52 ->  | L52: =(K39-SUM(K46:K51))*Basis!H30 ->  | M52: =M42-N52 ->  | N52: =(M39-SUM(M46:M51))*Basis!H30 ->  | O52: =O42-P52 ->  | P52: =(O39-SUM(O46:O51))*Basis!H30 ->  | Q52: =Q42-R52 ->  | R52: =(Q39-SUM(Q46:Q51))*Basis!H30 -> 
B53: 8 | C53: =C42-D53 ->  | D53: =(C39-SUM(C46:C52))*Basis!H30 ->  | E53: =E42-F53 ->  | F53: =(E39-SUM(E46:E52))*Basis!H30 ->  | G53: =G42-H53 ->  | H53: =(G39-SUM(G46:G52))*Basis!H30 ->  | I53: =I42-J53 ->  | J53: =(I39-SUM(I46:I52))*Basis!H30 ->  | K53: =K42-L53 ->  | L53: =(K39-SUM(K46:K52))*Basis!H30 ->  | M53: =M42-N53 ->  | N53: =(M39-SUM(M46:M52))*Basis!H30 ->  | O53: =O42-P53 ->  | P53: =(O39-SUM(O46:O52))*Basis!H30 ->  | Q53: =Q42-R53 ->  | R53: =(Q39-SUM(Q46:Q52))*Basis!H30 -> 
B54: Total | C54: =SUM(C46:C53) ->  | D54: =SUM(D46:D53) ->  | E54: =SUM(E46:E53) ->  | F54: =SUM(F46:F53) ->  | H54: =SUM(H46:H53) ->  | J54: =SUM(J46:J53) -> 
B56: Feed Loan for the 3rd Year of Grace Period
B57: Description | C57: scheme 1 | E57: scheme 2 | G57: scheme 3 | I57: scheme 4 | K57: scheme 5 | M57: scheme 6 | O57: scheme 7 | Q57: scheme9
B58: Origin Loan | C58: =IF(Feed!O26>3,Feed!O23,Feed!O23*(Feed!O26-2)) ->  | E58: =IF(Feed!P26>3,Feed!P23,Feed!P23*(Feed!P26-2)) ->  | G58: =IF(Feed!Q26>3,Feed!Q23,Feed!Q23*(Feed!Q26-2)) ->  | I58: =IF(Feed!R26>3,Feed!R23,Feed!R23*(Feed!R26-2)) ->  | K58: =IF(Feed!S26>3,Feed!S23,Feed!S23*(Feed!S26-2)) ->  | M58: =IF(Feed!T26>3,Feed!T23,Feed!T23*(Feed!T26-2)) ->  | O58: =IF(Feed!U26>3,Feed!U23,Feed!U23*(Feed!U26-2)) ->  | Q58: =IF(Feed!V26>3,Feed!V23,Feed!V23*(Feed!V26-2)) -> 
B59: Garce Period (months) | C59: =C34-12 ->  | E59: =E34-12 ->  | H59: -12 | Q59: =IF(Q34<12,0,Q34-12) -> 
B60: Interest on Grace Period for the 3rd year | C60: =Basis!H50*4% -> 0.04 | E60: 0.04 | G60: 0.04 | I60: 0.04 | K60: 0.04 | M60: 0.04 | O60: 0.04 | Q60: 0.04
B61: Interest on Grace Period 3rd yr | C61: =C58*C60*C59/12 ->  | E61: =E58*E60*E59/12 ->  | I61: =I58*I60*I59/12 ->  | K61: =K58*K60*K59/12 ->  | M61: =M58*M60*M59/12 ->  | O61: =O58*O60*O59/12 ->  | Q61: =Q58*Q60*Q59/12 -> 
B62: Total Loan Origin and Grace period interest | C62: =C58+C61 ->  | E62: =E58+E61 ->  | I62: =I58+I61 ->  | K62: =K58+K61 ->  | M62: =M58+M61 ->  | O62: =O58+O61 ->  | Q62: =Q58+Q61 -> 
B63: Total Repayment period (months) | C63: =Basis!I30*12 -> 96 | E63: =C63 -> 96 | G63: =C63 -> 96 | I63: =C63 -> 96 | K63: =C63 -> 96 | M63: =C63 -> 96 | O63: =C63 -> 96 | Q63: =E63 -> 96
B64: instalment interval | C64: 12 | E64: =C64 -> 12 | G64: =C64 -> 12 | I64: =C64 -> 12 | K64: =C64 -> 12 | M64: =C64 -> 12 | O64: =C64 -> 12 | Q64: =E64 -> 12
B65: PMT (Annual) | C65: =PMT(Basis!H30,Basis!I30,-C62) ->  | E65: =PMT(Basis!H30,Basis!I30,-E62) ->  | G65: =PMT(Basis!H30,Basis!I30,-G62) -> 0 | I65: =PMT(Basis!H30,Basis!I30,-I62) ->  | K65: =PMT(Basis!H30,Basis!I30,-K62) ->  | M65: =PMT(Basis!H30,Basis!I30,-M62) ->  | O65: =PMT(Basis!H30,Basis!I30,-O62) ->  | Q65: =PMT(Basis!H30,Basis!I30,-Q62) -> 
B67: Loan Pay back | C67: scheme 1 | E67: scheme 2 | G67: scheme 3 | I67: scheme 4 | K67: scheme 5 | M67: scheme 6 | O67: scheme 7 | Q67: scheme9
B68: Payment years | C68: Pay Back (Orginal) | D68: Finacial Rate | E68: Pay Back (Orginal) | F68: Finacial Rate | G68: Pay Back (Orginal) | H68: Finacial Rate | I68: Pay Back (Orginal) | J68: Finacial Rate | K68: Pay Back (Orginal) | L68: Finacial Rate | M68: Pay Back (Orginal) | N68: Finacial Rate | O68: Pay Back (Orginal) | P68: Finacial Rate | Q68: Pay Back (Orginal) | R68: Finacial Rate
B69: 1 | C69: =C65-D69 ->  | D69: =C62*Basis!H30 ->  | E69: =E65-F69 ->  | F69: =E62*Basis!H30 ->  | G69: =G65-H69 -> 0 | H69: =G62*Basis!H30 -> 0 | I69: =I65-J69 ->  | J69: =I62*Basis!H30 ->  | K69: =K65-L69 ->  | L69: =K62*Basis!H30 ->  | M69: =M65-N69 ->  | N69: =M62*Basis!H30 ->  | O69: =O65-P69 ->  | P69: =O62*Basis!H30 ->  | Q69: =Q65-R69 ->  | R69: =Q62*Basis!H30 -> 
B70: 2 | C70: =C65-D70 ->  | D70: =(C62-C69)*Basis!H30 ->  | E70: =E65-F70 ->  | F70: =(E62-E69)*Basis!H30 ->  | G70: =G65-H70 -> 0 | H70: =(G62-G69)*Basis!H30 -> 0 | I70: =I65-J70 ->  | J70: =(I62-I69)*Basis!H30 ->  | K70: =K65-L70 ->  | L70: =(K62-K69)*Basis!H30 ->  | M70: =M65-N70 ->  | N70: =(M62-M69)*Basis!H30 ->  | O70: =O65-P70 ->  | P70: =(O62-O69)*Basis!H30 ->  | Q70: =Q65-R70 ->  | R70: =(Q62-Q69)*Basis!H30 -> 
B71: 3 | C71: =C65-D71 ->  | D71: =(C62-C69-C70)*Basis!H30 ->  | E71: =E65-F71 ->  | F71: =(E62-E69-E70)*Basis!H30 ->  | G71: =G65-H71 -> 0 | H71: =(G62-G69-G70)*Basis!H30 -> 0 | I71: =I65-J71 ->  | J71: =(I62-I69-I70)*Basis!H30 ->  | K71: =K65-L71 ->  | L71: =(K62-K69-K70)*Basis!H30 ->  | M71: =M65-N71 ->  | N71: =(M62-M69-M70)*Basis!H30 ->  | O71: =O65-P71 ->  | P71: =(O62-O69-O70)*Basis!H30 ->  | Q71: =Q65-R71 ->  | R71: =(Q62-Q69-Q70)*Basis!H30 -> 
B72: 4 | C72: =C65-D72 ->  | D72: =(C62-SUM(C69:C71))*Basis!H30 ->  | E72: =E65-F72 ->  | F72: =(E62-SUM(E69:E71))*Basis!H30 ->  | G72: =G65-H72 -> 0 | H72: =(G62-SUM(G69:G71))*Basis!H30 -> 0 | I72: =I65-J72 ->  | J72: =(I62-SUM(I69:I71))*Basis!H30 ->  | K72: =K65-L72 ->  | L72: =(K62-SUM(K69:K71))*Basis!H30 ->  | M72: =M65-N72 ->  | N72: =(M62-SUM(M69:M71))*Basis!H30 ->  | O72: =O65-P72 ->  | P72: =(O62-SUM(O69:O71))*Basis!H30 ->  | Q72: =Q65-R72 ->  | R72: =(Q62-SUM(Q69:Q71))*Basis!H30 -> 
B73: 5 | C73: =C65-D73 ->  | D73: =(C62-SUM(C69:C72))*Basis!H30 ->  | E73: =E65-F73 ->  | F73: =(E62-SUM(E69:E72))*Basis!H30 ->  | G73: =G65-H73 -> 0 | H73: =(G62-SUM(G69:G72))*Basis!H30 -> 0 | I73: =I65-J73 ->  | J73: =(I62-SUM(I69:I72))*Basis!H30 ->  | K73: =K65-L73 ->  | L73: =(K62-SUM(K69:K72))*Basis!H30 ->  | M73: =M65-N73 ->  | N73: =(M62-SUM(M69:M72))*Basis!H30 ->  | O73: =O65-P73 ->  | P73: =(O62-SUM(O69:O72))*Basis!H30 ->  | Q73: =Q65-R73 ->  | R73: =(Q62-SUM(Q69:Q72))*Basis!H30 -> 
B74: 6 | C74: =C65-D74 ->  | D74: =(C62-SUM(C69:C73))*Basis!H30 ->  | E74: =E65-F74 ->  | F74: =(E62-SUM(E69:E73))*Basis!H30 ->  | G74: =G65-H74 -> 0 | H74: =(G62-SUM(G69:G73))*Basis!H30 -> 0 | I74: =I65-J74 ->  | J74: =(I62-SUM(I69:I73))*Basis!H30 ->  | K74: =K65-L74 ->  | L74: =(K62-SUM(K69:K73))*Basis!H30 ->  | M74: =M65-N74 ->  | N74: =(M62-SUM(M69:M73))*Basis!H30 ->  | O74: =O65-P74 ->  | P74: =(O62-SUM(O69:O73))*Basis!H30 ->  | Q74: =Q65-R74 ->  | R74: =(Q62-SUM(Q69:Q73))*Basis!H30 -> 
B75: 7 | C75: =C65-D75 ->  | D75: =(C62-SUM(C69:C74))*Basis!H30 ->  | E75: =E65-F75 ->  | F75: =(E62-SUM(E69:E74))*Basis!H30 ->  | G75: =G65-H75 -> 0 | H75: =(G62-SUM(G69:G74))*Basis!H30 -> 0 | I75: =I65-J75 ->  | J75: =(I62-SUM(I69:I74))*Basis!H30 ->  | K75: =K65-L75 ->  | L75: =(K62-SUM(K69:K74))*Basis!H30 ->  | M75: =M65-N75 ->  | N75: =(M62-SUM(M69:M74))*Basis!H30 ->  | O75: =O65-P75 ->  | P75: =(O62-SUM(O69:O74))*Basis!H30 ->  | Q75: =Q65-R75 ->  | R75: =(Q62-SUM(Q69:Q74))*Basis!H30 -> 
B76: 8 | C76: =C65-D76 ->  | D76: =(C62-SUM(C69:C75))*Basis!H30 ->  | E76: =E65-F76 ->  | F76: =(E62-SUM(E69:E75))*Basis!H30 ->  | G76: =G65-H76 -> 0 | H76: =(G62-SUM(G69:G75))*Basis!H30 -> 0 | I76: =I65-J76 ->  | J76: =(I62-SUM(I69:I75))*Basis!H30 ->  | K76: =K65-L76 ->  | L76: =(K62-SUM(K69:K75))*Basis!H30 ->  | M76: =M65-N76 ->  | N76: =(M62-SUM(M69:M75))*Basis!H30 ->  | O76: =O65-P76 ->  | P76: =(O62-SUM(O69:O75))*Basis!H30 ->  | Q76: =Q65-R76 ->  | R76: =(Q62-SUM(Q69:Q75))*Basis!H30 -> 
B77: Total | C77: =SUM(C69:C76) ->  | D77: =SUM(D69:D76) ->  | E77: =SUM(E69:E76) ->  | G77: 0 | H77: 0
B79: Total repayment | C79: scheme 1 | E79: scheme 2 | G79: scheme 3 | I79: scheme 4 | K79: scheme 5 | M79: scheme 6 | O79: scheme 7 | Q79: scheme9
C80: =C42+C15+C65 ->  | E80: =E42+E15+E65 ->  | G80: =G42+G15 ->  | I80: =I42+I15+I65 ->  | K80: =K42+K15+K65 ->  | M80: =M42+M15+M65 ->  | O80: =O42+O15+O65 ->  | Q80: =Q42+Q15+Q65 -> 
B81: Total payment for 8 years | C81: =C80*8 ->  | D81: =D80*8 -> 0 | F81: 0 | H81: 0 | J81: 0 | L81: 0 | N81: 0 | P81: 0 | R81: 0

Sheet Economic Analysis
B3: Scenario 1 | C3: items | D3: Description | R3: Total:MM$ | S3: 1398 | T3: 1399 | U3: 1400 | V3: 1401 | W3: 1402 | X3: 1403 | Y3: 1404 | Z3: 1405 | AA3: 1406 | AB3: 1407 | AC3: 1408 | AD3: 1409 | AE3: 1410 | AF3: 1411 | AG3: 1412 | AH3: 1413 | AI3: 1414 | AJ3: 1415 | AK3: 1416 | AL3: 1417 | AM3: 1418 | AN3: 1419 | AO3: 1420 | AP3: 1421 | AQ3: 1422 | AR3: 1423 | AS3: 1424 | AT3: 1425 | AZ3: Salvage
S4: Construction Phase | AA4: Operating Phase | AZ4: =Basis!H36 -> 0.25
S5: =CAPEX!H5 -> 0.08770799537 | T5: =CAPEX!I5 -> 0.06817474256 | U5: =CAPEX!J5 -> 0.2983554234 | V5: =CAPEX!K5 -> 0.1654678814 | W5: =CAPEX!L5 -> 0.1278859689 | X5: =CAPEX!M5 -> 0.08066371233 | Y5: =CAPEX!N5 -> 0.112282363 | Z5: =CAPEX!O5 -> 0.0594619131 | AA5: Y:1 | AB5: Y:2 | AC5: Y:3 | AD5: Y:4 | AE5: Y:5 | AF5: Y:6 | AG5: Y:7 | AH5: Y:8 | AI5: Y:9 | AJ5: Y:10 | AK5: Y:11 | AL5: Y:12 | AM5: Y:13 | AN5: Y:14 | AO5: Y:15 | AP5: Y:16 | AQ5: Y:17 | AR5: Y:18 | AS5: Y:19 | AT5: Y:20
D6: Utilization Rate: | Y6: 0.8 | Z6: 0.9 | AA6: 1 | AB6: 1 | AC6: 1 | AD6: 1 | AE6: 1 | AF6: 1 | AG6: 1 | AH6: 1 | AI6: 1 | AJ6: 1 | AK6: 1 | AL6: 1 | AM6: 1 | AN6: 1 | AO6: 1 | AP6: 1 | AQ6: 1 | AR6: 1 | AS6: 1 | AT6: 1
C7: 1 | D7: Fixed Capital | R7: =CAPEX!P11 -> 501.2756878 | S7: =-$R$7*S5 -> -43.9658857 | T7: =-$R$7*T5 -> -34.17434097 | U7: -149.5583201 | V7: -82.94502603 | W7: -64.10612704 | X7: -40.43475788 | Y7: -56.28441872 | Z7: -29.80681138 | AV7: Discount rate: | AZ7: =Basis!H37 -> 0.1
C8: 1-1 | D8: Loan | R8: =-SUM(S8:W8) -> 227.356131 | S8: =S7-S9 -> -29.19624 | T8: =T7-T9 -> -15.109289 | U8: -120.277381 | V8: -42.141901 | W8: -20.63132 | X8: -16.32 | Y8: -31.2 | Z8: -4.24
C9: 1-2 | D9: Equity | R9: =-SUM(S9:W9) -> 147.3935688 | S9: =S7*CAPEX!H6 -> -14.7696457 | T9: =T7*CAPEX!I6 -> -19.06505197 | U9: =U7*CAPEX!J6 -> -29.28093906 | V9: =V7*CAPEX!K6 -> -40.80312503 | W9: =W7*CAPEX!L6 -> -43.47480704 | X9: =X7*CAPEX!M6 -> -24.11475788 | Y9: =Y7*CAPEX!N6 -> -25.08441872 | Z9: =Z7*CAPEX!O6 -> -25.56681138
C10: 2 | D10: Working Capital | R10: =Opex!H5+Opex!H8+Opex!H16 -> 23.50130733 | W10: =O10 -> 0 | Y10: =-R10 -> -23.50130733 | AV10: Tax rate: | AZ10: =Basis!H35 -> 0.25
C11: 3 | D11: Total Investment Cost | R11: =R7+R10 -> 524.7769951
C12: 4 | D12: Revenue | N12: base: | O12: =Revenue!M14 -> 1572.581811 | P12: Without NHT: | Q12: =Revenue!N14 -> 1499.255364 | X12: =$R$12*X6 -> 0 | Y12: =Q12/2*Y6 -> 599.7021458 | Z12: =Q12*Z6 -> 1349.329828 | AA12: =$O$12*AA6 -> 1572.581811 | AB12: =$O$12*AB6 -> 1572.581811 | AC12: 1572.581811 | AD12: 1572.581811 | AE12: 1572.581811 | AF12: 1572.581811 | AG12: 1572.581811 | AH12: 1572.581811 | AI12: 1572.581811 | AJ12: 1572.581811 | AK12: 1572.581811 | AL12: 1572.581811 | AM12: 1572.581811 | AN12: 1572.581811 | AO12: 1572.581811 | AP12: 1572.581811 | AQ12: 1572.581811 | AR12: 1572.581811 | AS12: 1572.581811 | AT12: 1572.581811
C13: 5 | D13: OPEX | N13: Fixed: | O13: =Opex!H9 -> 13.01785963 | P13: Variable: | Q13: =Opex!H17 -> 1473.820848 | R13: =O13+Q13 -> 1486.838708 | Y13: =-(O13+Q13*Y6)/2 -> -596.037269 | Z13: =-(O13+Q13*Z6) -> -1339.456623 | AA13: =-($O$13+$Q$13*AA6) -> -1486.838708 | AB13: =-($O$13+$Q$13*AB6) -> -1486.838708 | AC13: -1486.838708 | AD13: -1486.838708 | AE13: -1486.838708 | AF13: -1486.838708 | AG13: -1486.838708 | AH13: -1486.838708 | AI13: -1486.838708 | AJ13: -1486.838708 | AK13: -1486.838708 | AL13: -1486.838708 | AM13: -1486.838708 | AN13: -1486.838708 | AO13: -1486.838708 | AP13: -1486.838708 | AQ13: -1486.838708 | AR13: -1486.838708 | AS13: -1486.838708 | AT13: -1486.838708
C14: 7 | D14: Loan Financial cost | R14: =-SUM(X14:AB14) -> 0
C15: 8 | D15: Gross profit | S15: =S7+S10 -> -43.9658857 | T15: -34.17434097 | U15: -149.5583201 | V15: -82.94502603 | W15: -64.10612704 | X15: =X7+X10 -> -40.43475788 | Y15: =SUM(Y12:Y13) -> 3.664876753 | Z15: =SUM(Z12:Z13) -> 9.873205148 | AA15: =SUM(AA12:AA14) -> 85.74310315 | AB15: =SUM(AB12:AB14) -> 85.74310315 | AC15: 85.74310315 | AD15: 85.74310315 | AE15: 85.74310315 | AF15: 85.74310315 | AG15: 85.74310315 | AH15: 85.74310315 | AI15: 85.74310315 | AJ15: 85.74310315 | AK15: 85.74310315 | AL15: 85.74310315 | AM15: 85.74310315 | AN15: 85.74310315 | AO15: 85.74310315 | AP15: 85.74310315 | AQ15: 85.74310315 | AR15: 85.74310315 | AS15: 85.74310315 | AT15: 85.74310315
C16: 9 | D16: Taxable profit | Y16: =SUM(Y12:Y14)-$V$21 -> -15.13296154 | Z16: =SUM(Z12:Z13)-$V$21 -> -8.924633144 | AA16: =SUM(AA7:AA14)-$V$21 -> 66.94526486 | AB16: =SUM(AB7:AB14)-$V$21 -> 66.94526486 | AC16: =SUM(AC7:AC14)-$V$21 -> 66.94526486 | AD16: =SUM(AD7:AD14)-$V$21 -> 66.94526486 | AE16: =SUM(AE7:AE14)-$V$21 -> 66.94526486 | AF16: =SUM(AF7:AF14)-$V$21 -> 66.94526486 | AG16: =SUM(AG7:AG14)-$V$21 -> 66.94526486 | AH16: =SUM(AH7:AH14)-$V$21 -> 66.94526486 | AI16: =SUM(AI7:AI14)-$V$21 -> 66.94526486 | AJ16: =SUM(AJ7:AJ14)-$V$21 -> 66.94526486 | AK16: =SUM(AK7:AK14)-$V$21 -> 66.94526486 | AL16: =SUM(AL7:AL14)-$V$21 -> 66.94526486 | AM16: =SUM(AM7:AM14)-$V$21 -> 66.94526486 | AN16: =SUM(AN7:AN14)-$V$21 -> 66.94526486 | AO16: =SUM(AO7:AO14)-$V$21 -> 66.94526486 | AP16: =SUM(AP7:AP14)-$V$21 -> 66.94526486 | AQ16: =SUM(AQ7:AQ14)-$V$21 -> 66.94526486 | AR16: =SUM(AR7:AR14)-$V$21 -> 66.94526486 | AS16: =SUM(AS7:AS14)-$V$21 -> 66.94526486 | AT16: =SUM(AT7:AT14)-$V$21 -> 66.94526486
C17: 10 | D17: Tax | X17: 0 | Y17: 0 | Z17: 0 | AA17: 0 | AB17: 0 | AC17: 0 | AD17: 0 | AE17: 0 | AF17: 0 | AG17: 0 | AH17: 0 | AI17: 0 | AJ17: 0 | AK17: =-AK16*$AZ$10 -> -16.73631622 | AL17: -16.73631622 | AM17: -16.73631622 | AN17: -16.73631622 | AO17: -16.73631622 | AP17: -16.73631622 | AQ17: -16.73631622 | AR17: -16.73631622 | AS17: -16.73631622 | AT17: -16.73631622
C18: 11 | D18: Net Profit-Non Discounted Cash flow- Total | S18: =S7+S10 -> -43.9658857 | T18: =T7+T10 -> -34.17434097 | U18: =U7+U10 -> -149.5583201 | V18: =V7+V10 -> -82.94502603 | W18: -64.10612704 | X18: -40.43475788 | Y18: =Y7+Y10+Y12+Y13 -> -76.12084929 | Z18: =Z7+Z10+Z12+Z13 -> -19.93360624 | AA18: =SUM(AA7:AA14)+AA17 -> 85.74310315 | AB18: =SUM(AB7:AB14)+AB17 -> 85.74310315 | AC18: =SUM(AC7:AC14)+AC17 -> 85.74310315 | AD18: =SUM(AD7:AD14)+AD17 -> 85.74310315 | AE18: =SUM(AE7:AE14)+AE17 -> 85.74310315 | AF18: =SUM(AF7:AF14)+AF17 -> 85.74310315 | AG18: =SUM(AG7:AG14)+AG17 -> 85.74310315 | AH18: =SUM(AH7:AH14)+AH17 -> 85.74310315 | AI18: =SUM(AI7:AI14)+AI17 -> 85.74310315 | AJ18: =SUM(AJ7:AJ14)+AJ17 -> 85.74310315 | AK18: =SUM(AK7:AK14)+AK17 -> 69.00678694 | AL18: =SUM(AL7:AL14)+AL17 -> 69.00678694 | AM18: =SUM(AM7:AM14)+AM17 -> 69.00678694 | AN18: =SUM(AN7:AN14)+AN17 -> 69.00678694 | AO18: =SUM(AO7:AO14)+AO17 -> 69.00678694 | AP18: =SUM(AP7:AP14)+AP17 -> 69.00678694 | AQ18: =SUM(AQ7:AQ14)+AQ17 -> 69.00678694 | AR18: =SUM(AR7:AR14)+AR17 -> 69.00678694 | AS18: =SUM(AS7:AS14)+AS17 -> 69.00678694 | AT18: =SUM(AT7:AT13)+AT17+(AZ4*R7)+R10 -> 217.8270162
C19: 12 | D19: Net Profit-Non Discounted Cash flow- Equity | S19: =SUM(S9:S10) -> -14.7696457 | T19: =SUM(T9:T10) -> -19.06505197 | U19: =SUM(U9:U10) -> -29.28093906 | V19: =SUM(V9:V10) -> -40.80312503 | W19: =SUM(W9:W10) -> -43.47480704 | X19: =SUM(X7:X14)+X17 -> -80.86951575 | Y19: =SUM(Y7:Y14)+Y17 -> -132.405268 | Z19: =SUM(Z7:Z14)+Z17 -> -49.74041762 | AA19: =SUM(AA7:AA14)+AA17 -> 85.74310315 | AB19: =SUM(AB7:AB14)+AB17 -> 85.74310315 | AC19: =SUM(AC7:AC14)+AC17 -> 85.74310315 | AD19: =SUM(AD7:AD14)+AD17 -> 85.74310315 | AE19: =SUM(AE7:AE14)+AE17 -> 85.74310315 | AF19: =SUM(AF7:AF14)+AF17 -> 85.74310315 | AG19: =SUM(AG7:AG14)+AG17 -> 85.74310315 | AH19: =SUM(AH7:AH14)+AH17 -> 85.74310315 | AI19: =SUM(AI7:AI14)+AI17 -> 85.74310315 | AJ19: =SUM(AJ7:AJ14)+AJ17 -> 85.74310315 | AK19: =SUM(AK7:AK14)+AK17 -> 69.00678694 | AL19: =SUM(AL7:AL14)+AL17 -> 69.00678694 | AM19: =SUM(AM7:AM14)+AM17 -> 69.00678694 | AN19: =SUM(AN7:AN14)+AN17 -> 69.00678694 | AO19: =SUM(AO7:AO14)+AO17 -> 69.00678694 | AP19: =SUM(AP7:AP14)+AP17 -> 69.00678694 | AQ19: =SUM(AQ7:AQ14)+AQ17 -> 69.00678694 | AR19: =SUM(AR7:AR14)+AR17 -> 69.00678694 | AS19: =SUM(AS7:AS14)+AS17 -> 69.00678694 | AT19: =SUM(AT7:AT13)+AT17+(AZ4*R7)+R10 -> 217.8270162
C20: IRR-Total | R20: =IRR(S18:AT18) -> 0.09562271174
C21: NPV-Total, MM$ | R21: =NPV(AZ7,S18:AT18) -> -15.85638228 | S21: ADR : | V21: =SLN((R7),AZ4*(R7),20) -> 18.79783829

Sheet Final Result
A1: Parameter | B1: Unit | C1: Scenario 1 | D1: Scenario 2 | E1: Scenario 3 | F1: Scenario 4 | G1: Scenario 5 | H1: Scenario 6 | I1: Scenario 7 | J1: Scenario 9
A2: COTC | B2: % | C2: 23.4
A3: Fule Oil Ratio | B3: % | C3: 5.6
A4: Capex | B4: MM$ | C4: ='Economic Analysis '!R7 -> 501.2756878
A5: working Capital | B5: MM$ | C5: ='Economic Analysis '!R10 -> 23.50130733
A6: Revenue | B6: MM$ | C6: ='Economic Analysis '!R12 -> 0
A7: Opex | B7: MM$ | C7: ='Economic Analysis '!R13 -> 1486.838708
A8: IRR | B8: % | C8: ='Economic Analysis '!R20 -> 0.09562271174
A9: NPV@10% | B9: MM$ | C9: ='Economic Analysis '!R21 -> -15.85638228

Sheet Sheet2 (hidden)
B15: Loan | C15: Grace
B16: =#REF! ->  | C16: 1 | E16: 1 | G16: 2 | I16: 3 | K16: 4 | M16: 5
B17: =#REF! ->  | C17: 0 | D17: =B17*B16 ->  | F17: =E18*B16 ->  | H17: =G18*B16 ->  | J17: =I18*B16 ->  | L17: =K18*B16 ->  | M17: =M18*B16/2 -> 
D18: =B17 ->  | E18: =D17+D18 ->  | G18: =F17+E18 ->  | I18: =H17+G18 ->  | K18: =J17+I18 ->  | M18: =L17+K18 ->  | N18: =M17+M18 -> 
